fUST/lending_fUST_20260105
["ID","MTS","AMOUNT","RATE_DAILY","PERIOD"]
[400456098,1767579046807,-430.367058,0.00019178,2]
[400456099,1767579046817,-493.419674,0.00019178,2]
[400456100,1767579046827,-430.36706,0.00019178,2]
[400456101,1767579046838,-151.0,0.00019178,2]
[400456102,1767579046847,-151.0,0.00019178,2]
[400456103,1767579046856,-151.0,0.00019178,2]
[400456104,1767579046864,-151.0,0.00019178,2]
[400456105,1767579046874,-151.0,0.00019178,2]
[400456106,1767579046883,-151.0,0.00019178,2]
[400456107,1767579046892,-151.0,0.00019178,2]
[400456108,1767579046900,-151.0,0.00019178,2]
[400456109,1767579046910,-151.0,0.00019178,2]
[400456110,1767579046919,-151.0,0.00019178,2]
[400456111,1767579046928,-151.0,0.00019178,2]
[400456112,1767579046937,-151.0,0.00019178,2]
[400456113,1767579046947,-151.0,0.00019178,2]
[400456114,1767579046956,-229.860479,0.00019178,2]
[400456115,1767579046967,-772.899882,0.00019178,2]
[400456116,1767579046976,-772.899882,0.00019178,2]
[400456117,1767579046985,-772.899882,0.00019178,2]
[400456118,1767579046994,-772.899882,0.00019178,2]
[400456119,1767579047003,-772.899882,0.00019178,2]
[400456120,1767579047013,-772.899882,0.00019178,2]
[400456121,1767579047022,-772.899882,0.00019178,2]
[400456122,1767579047031,-772.899882,0.00019178,2]
[400456123,1767579047040,-772.899882,0.00019178,2]
[400456124,1767579047049,-772.899882,0.00019178,2]
[400456125,1767579047060,-772.899882,0.00019178,2]
[400456126,1767579047069,-772.899882,0.00019178,2]
[400456127,1767579047078,-772.899882,0.00019178,2]
[400456128,1767579047087,-772.899882,0.00019178,2]
[400456129,1767579047096,-772.899882,0.00019178,2]
[400456130,1767579047106,-772.899882,0.00019178,2]
[400456131,1767579047115,-151.0,0.00019178,2]
[400456132,1767579047125,-772.899882,0.00019178,2]
[400456133,1767579047135,-151.0,0.00019178,2]
[400456134,1767579047147,-772.899882,0.00019178,2]
[400456135,1767579047157,-151.0,0.00019178,2]
[400456136,1767579047166,-772.899882,0.00019178,2]
[400456137,1767579047176,-151.0,0.00019178,2]
[400456138,1767579047187,-772.899876,0.00019178,2]
[400456139,1767579047199,-151.0,0.00019178,2]
[400456140,1767579047210,-151.0,0.00019178,2]
[400456141,1767579047220,-151.0,0.00019178,2]
[400456142,1767579047230,-900.14511185,0.00019178,2]
[400456143,1767579047239,-3288.35,0.000192,2]
[400456144,1767579047252,-33789.9,0.000192,2]
[400456145,1767579047262,-167.69,0.000192,2]
[400456146,1767579047273,-304.28,0.000192,2]
[400456147,1767579047284,-274.09,0.000192,2]
[400456148,1767579047295,-2622.91610758,0.00019205,5]
[400456149,1767579047305,-160.0,0.00019236,7]
[400456150,1767579047316,-154.5418885,0.00019276,2]
[400456151,1767579047327,-726.0,0.00019276,2]
[400456152,1767579047338,-2045.5987646,0.00019291,2]
[400456153,1767579047349,-300.0,0.00019315,2]
[400456154,1767579047361,-875.0,0.00019326,2]
[400456155,1767579047371,-8489.2713405,0.00019374,10]
[400456156,1767579047380,-2566.27776959,0.00019416,2]
[400456157,1767579047391,-376.6844498,0.00019421,2]
[400456158,1767579047401,-376.6844498,0.00019421,2]
[400456159,1767579047413,-376.6844498,0.00019421,2]
[400456160,1767579047424,-376.6844498,0.00019421,2]
[400456161,1767579047434,-376.6844498,0.00019421,2]
[400456162,1767579047445,-376.6844498,0.00019421,2]
[400456163,1767579047454,-375.526205,0.00019421,2]
[400456164,1767579047466,-450.43067346,0.00019452,2]
[400456165,1767579047477,-151.0,0.00019472,2]
[400456166,1767579047487,-5000.0,0.00019558,2]
[400456167,1767579047498,-456.4347799,0.00019628,2]
[400456168,1767579047507,-198.4431008,0.00019691,2]
[400456169,1767579047517,-193.6002407,0.00019691,2]
[400456170,1767579047527,-151.0,0.000197,2]
[400456171,1767579047537,-1232.45668,0.0001976,5]
[400456172,1767579047548,-303.45210145,0.00019761,2]
[400456173,1767579047557,-1000.0,0.0001978,5]
[400456174,1767579047568,-303.45210145,0.00019791,2]
[400456175,1767579047578,-1000.0,0.000198,5]
[400456176,1767579047587,-480.08,0.000198,30]
[400456177,1767579047598,-1000.0,0.0001982,5]
[400456178,1767579047609,-1115.34667596,0.00019829,2]
[400456179,1767579047619,-178.0,0.00019829,2]
[400456180,1767579047628,-416.0,0.00019829,2]
[400456181,1767579047637,-1000.0,0.0001984,5]
[400456182,1767579047647,-160.0,0.00019845,8]
[400456183,1767579047657,-161.11360208,0.00019845,5]
[400456184,1767579047667,-1000.0,0.0001986,5]
[400456185,1767579047676,-1000.0,0.0001988,5]
[400456186,1767579047685,-1000.0,0.000199,5]
[400456187,1767579047695,-500.0,0.00019918,7]
[400456188,1767579047705,-1000.0,0.0001992,5]
[400456189,1767579047715,-185.90777933,0.00019935,29]
[400456190,1767579047724,-1071.999347,0.0001994,5]
[400456191,1767579047734,-1000.0,0.0001994,5]
[400456192,1767579047744,-455.17815218,0.00019959,4]
[400456193,1767579047754,-1000.0,0.0001996,5]
[400456194,1767579047763,-1000.0,0.0001996,5]
[400456195,1767579047772,-151.0,0.00019977,2]
[400456196,1767579047782,-1000.0,0.0001998,5]
[400456197,1767579047791,-1000.0,0.0001998,5]
[400456198,1767579047800,-455.17815218,0.00019989,4]
[400456199,1767579047810,-2285.86649662,0.0002,30]
[400456200,1767579047819,-617.22277842,0.0002,2]
[400456201,1767579047828,-14537.72367137,0.0002,2]
[400456202,1767579047838,-9999.999999,0.0002,7]
[400456203,1767579047847,-32957.79933473,0.0002,20]
[400456204,1767579047857,-371.11751909,0.0002,2]
[400456205,1767579047866,-505.62779743,0.0002,2]
[400456206,1767579047875,-3771.86743473,0.0002,30]
[400456207,1767579047884,-610.38501589,0.0002,2]
[400456208,1767579047893,-23000.0,0.0002,2]
[400456209,1767579047902,-202.45861978,0.0002,2]
[400456210,1767579047911,-400.0,0.0002,30]
[400456211,1767579047921,-318.87142967,0.0002,30]
[400456212,1767579047931,-161.28477143,0.0002,30]
[400456213,1767579047940,-159.80005479,0.0002,2]
[400456214,1767579047949,-820.0,0.0002,5]
[400456215,1767579047959,-12211.63598155,0.0002,2]
[400456216,1767579047968,-160.0,0.0002,14]
[400456217,1767579047979,-205.08510719,0.0002,2]
[400456218,1767579047990,-207.0,0.0002,10]
[400456219,1767579048000,-2672.0,0.0002,3]
[400456220,1767579048009,-500.0,0.0002,10]
[400456221,1767579048019,-1035.0,0.0002,2]
[400456222,1767579048028,-456.35184474,0.0002,3]
[400456223,1767579048037,-1000.0,0.0002,5]
[400456224,1767579048048,-1000.0,0.0002,5]
[400456225,1767579048059,-250.0,0.0002,10]
[400456226,1767579048068,-2000.0,0.0002,7]
[400456227,1767579048077,-185.90777933,0.0002004,30]
[400456228,1767579048087,-250.0,0.000201,10]
[400456229,1767579048096,-440.34548428,0.0002013,2]
[400456230,1767579048106,-4603.23076409,0.00020136,30]
[400456231,1767579048115,-610.0,0.00020138,2]
[400456232,1767579048124,-185.90777933,0.00020145,30]
[400456233,1767579048135,-455.17815218,0.00020156,4]
[400456234,1767579048145,-594.53042869,0.00020187,4]
[400456235,1767579048154,-740.995017,0.00020187,2]
[400456236,1767579048163,-720.0,0.00020195,2]
[400456237,1767579048172,-250.0,0.000202,10]
[400456238,1767579048182,-185.90777933,0.0002025,30]
[400456239,1767579048191,-5000.0,0.00020281,2]
[400456240,1767579048200,-274.09,0.000203,2]
[400456241,1767579048210,-304.28,0.000203,2]
[400456242,1767579048220,-250.0,0.000203,10]
[400456243,1767579048229,-160.0,0.00020317,2]
[400456244,1767579048239,-727.0,0.00020317,2]
[400456245,1767579048250,-455.17815218,0.00020354,4]
[400456246,1767579048260,-185.90777933,0.00020355,30]
[400456247,1767579048270,-33789.9,0.000204,2]
[400456248,1767579048280,-250.0,0.000204,10]
[400456249,1767579048290,-185.90777933,0.00020461,30]
[400456250,1767579048301,-151.0,0.00020483,2]
[400456251,1767579048311,-295.832,0.000205,2]
[400456252,1767579048320,-295.83,0.000205,2]
[400456253,1767579048329,-250.0,0.000205,10]
[400456254,1767579048340,-2000.0,0.000205,7]
[400456255,1767579048349,-726.0,0.00020506,2]
[400456256,1767579048359,-248.124513,0.00020548,2]
[400456257,1767579048369,-455.17815218,0.00020551,4]
[400456258,1767579048378,-185.90777933,0.00020566,30]
[400456259,1767579048388,-250.0,0.000206,10]
[400456260,1767579048397,-1387.44429035,0.0002061,2]
[400456261,1767579048407,-160.0,0.00020637,2]
[400456262,1767579048417,-185.90777933,0.00020671,30]
[400456263,1767579048427,-250.0,0.000207,10]
[400456264,1767579048436,-9879.14989725,0.00020735,13]
[400456265,1767579048446,-455.17815218,0.00020749,4]
[400456266,1767579048455,-185.90777933,0.00020776,30]
[400456267,1767579048465,-250.0,0.000208,10]
[400456268,1767579048475,-185.90777933,0.00020882,30]
[400456269,1767579048484,-256.09235414,0.000209,2]
[400456270,1767579048493,-250.0,0.000209,10]
[400456271,1767579048503,-234.06,0.00020924,2]
[400456272,1767579048513,-606.9042029,0.00020947,6]
[400456273,1767579048523,-165.0,0.00020986,3]
[400456274,1767579048532,-185.90777933,0.00020987,30]
[400456275,1767579048543,-151.0,0.00020989,2]
[400456276,1767579048552,-703.35,0.00021,7]
[400456277,1767579048562,-22967.28191854,0.00021,2]
[400456278,1767579048573,-10000.0,0.00021,5]
[400456279,1767579048582,-500.0,0.00021,15]
[400456280,1767579048592,-3000.0,0.00021,2]
[400456281,1767579048601,-250.0,0.00021,10]
[400456282,1767579048611,-2000.0,0.00021,7]
[400456283,1767579048621,-5000.0,0.00021003,2]
[400456284,1767579048631,-322.14320672,0.00021003,2]
[400456285,1767579048642,-3000.0,0.0002101,2]
[400456286,1767579048651,-3000.0,0.0002102,2]
[400456287,1767579048661,-3000.0,0.0002103,2]
[400456288,1767579048671,-3000.0,0.0002104,2]
[400456289,1767579048680,-3000.0,0.0002105,2]
[400456290,1767579048690,-3000.0,0.0002106,2]
[400456291,1767579048700,-3000.0,0.0002107,2]
[400456292,1767579048710,-3000.0,0.0002108,2]
[400456293,1767579048720,-3000.0,0.0002109,2]
[400456294,1767579048729,-185.90777933,0.00021092,30]
[400456295,1767579048739,-167.69,0.000211,2]
[400456296,1767579048749,-3000.0,0.000211,2]
[400456297,1767579048759,-250.0,0.000211,10]
[400456298,1767579048768,-3000.0,0.0002111,2]
[400456299,1767579048778,-3000.0,0.0002112,2]
[400456300,1767579048787,-3000.0,0.0002113,2]
[400456301,1767579048797,-3000.0,0.0002114,2]
[400456302,1767579048807,-603.90581406,0.00021144,6]
[400456303,1767579048817,-3000.0,0.0002115,2]
[400456304,1767579048828,-3000.0,0.0002116,2]
[400456305,1767579048839,-3000.0,0.0002117,2]
[400456306,1767579048848,-3000.0,0.0002118,2]
[400456307,1767579048859,-3000.0,0.0002119,2]
[400456308,1767579048868,-371.71555865,0.00021197,30]
[400456309,1767579048878,-3000.0,0.000212,2]
[400456310,1767579048887,-3000.0,0.0002121,2]
[400456311,1767579048897,-3000.0,0.0002122,2]
[400456312,1767579048907,-3000.0,0.0002123,2]
[400456313,1767579048916,-3000.0,0.0002124,2]
[400456314,1767579048927,-3000.0,0.0002125,2]
[400456315,1767579048936,-3000.0,0.0002126,2]
[400456316,1767579048947,-3000.0,0.0002127,2]
[400456317,1767579048959,-727.0,0.00021277,2]
[400456318,1767579048968,-3000.0,0.0002128,2]
[400456319,1767579048977,-3000.0,0.0002129,2]
[400456320,1767579048988,-3000.0,0.000213,2]
[400456321,1767579048998,-3000.0,0.0002131,2]
[400456322,1767579049008,-3000.0,0.0002132,2]
[400456323,1767579049017,-3000.0,0.0002133,2]
[400456324,1767579049028,-311.9883009,0.00021339,2]
[400456325,1767579049038,-303.8391398,0.00021339,2]
[400456326,1767579049048,-3000.0,0.0002134,2]
[400456327,1767579049058,-3000.0,0.0002135,2]
[400456328,1767579049068,-3000.0,0.0002136,2]
[400456329,1767579049078,-3000.0,0.0002137,2]
[400456330,1767579049088,-3000.0,0.0002138,2]
[400456331,1767579049097,-3000.0,0.0002139,2]
[400456332,1767579049106,-3288.35,0.000214,2]
[400456333,1767579049116,-274.09,0.000214,2]
[400456334,1767579049125,-304.28,0.000214,2]
[400456335,1767579049137,-3500.0,0.000214,3]
[400456336,1767579049258,-3000.0,0.000214,2]
[400456337,1767579049282,-3000.0,0.0002141,2]
[400456338,1767579049291,-3000.0,0.0002142,2]
[400456339,1767579049301,-3969.772619,0.0002143,2]
[400456340,1767579049309,-727.0,0.00021484,2]
[400456341,1767579049320,-151.0,0.00021494,2]
[400456342,1767579049329,-1038.46924337,0.000215,2]
[400456343,1767579049339,-12845.32818448,0.000215,2]
[400456344,1767579049349,-622.0,0.000215,3]
[400456345,1767579049359,-2000.0,0.000215,7]
[400456346,1767579049369,-5000.0,0.00021538,2]
[400456347,1767579049379,-5000.0,0.00021538,2]
[400456348,1767579049388,-5000.0,0.00021538,2]
[400456349,1767579049397,-416.01103047,0.00021565,2]
[400456350,1767579049406,-5295.11341978,0.00021565,2]
[400456351,1767579049416,-727.0,0.00021597,2]
[400456352,1767579049425,-33789.9,0.000216,2]
[400456353,1767579049435,-5000.0,0.00021725,2]
[400456354,1767579049445,-284.8,0.000218,30]
[400456355,1767579049455,-14111.72718472,0.000219,2]
[400456356,1767579049465,-355.74053743,0.00021917,3]
[400456357,1767579049475,-207.83497319,0.00021918,7]
[400456358,1767579049484,-5012.65558274,0.00022,2]
[400456359,1767579049493,-203546.96244697,0.00022,20]
[400456360,1767579049623,-2482.10465906,0.00022,20]
[400456361,1767579049633,-2410.26592135,0.00022,2]
[400456362,1767579049645,-7589.73407865,0.00022,2]
[400456363,1767579049654,-189.84,0.00022,5]
[400456364,1767579049663,-1224.31499368,0.00022,7]
[400456365,1767579049675,-1111.31500632,0.00022,7]
[400456366,1767579049684,-151.0,0.00022,2]
[400456367,1767579049693,-2000.0,0.00022,7]
[400456368,1767579049703,-151.05929117,0.00022059,2]
[400456369,1767579049712,-9407.26818599,0.00022097,15]
[400456370,1767579049723,-1861.76026801,0.00022097,15]
[400456371,1767579049732,-500.0,0.0002211,7]
[400456372,1767579049742,-303.8391398,0.00022161,2]
[400456373,1767579049751,-303.8391398,0.00022161,2]
[400456374,1767579049761,-303.8391398,0.00022161,2]
[400456375,1767579049771,-618.1668454,0.00022161,2]
[400456376,1767579049780,-283.9364723,0.0002218,5]
[400456377,1767579049791,-350.25694132,0.0002218,5]
[400456378,1767579049800,-167.50231897,0.00022193,2]
[400456379,1767579049809,-210.33387805,0.00022193,2]
[400456380,1767579049819,-634.83028981,0.00022214,10]
[400456381,1767579049836,-229.16971019,0.00022214,10]
[400456382,1767579049845,-2859.12985908,0.00022447,2]
[400456383,1767579049856,-2000.0,0.00022447,2]
[400456384,1767579049867,-140.87014092,0.00022447,2]
[400456385,1767579049877,-300.0,0.00022466,2]
[400456386,1767579049887,-216.17311145,0.000225,2]
[400456387,1767579049939,-151.0,0.00019178,2]
[400456388,1767579049948,-151.0,0.00019178,2]
[400456389,1767579049957,-151.0,0.00019178,2]
[400456390,1767579049967,-151.0,0.00019178,2]
[400456391,1767579049977,-233.390506,0.00019178,2]
[400456392,1767579049986,-34.899494,0.00019178,2]
[400456393,1767579050059,-116.100506,0.00019178,2]
[400456394,1767579050068,-173.95817122,0.00020959,30]
[400456395,1767579050078,-816.08196084,0.000225,2]
[400456396,1767579050087,-274.09,0.000225,7]
[400456397,1767579050096,-304.28,0.000225,7]
[400456398,1767579050105,-2000.0,0.000225,7]
[400456399,1767579050114,-167.50231897,0.00022504,20]
[400456400,1767579050123,-245.72283719,0.00022578,2]
[400456401,1767579050133,-245.87212701,0.00022578,2]
[400456402,1767579050146,-135.60526691,0.000227,14]
[400456403,1767579050389,500.0,0.00030136,120]
[400456404,1767579050436,500.0,0.00030136,120]
[400456405,1767579050489,500.0,0.00030136,120]
[400456406,1767579050548,500.0,0.00030136,120]
[400456407,1767579050611,500.0,0.00030136,120]
[400456408,1767579050669,500.0,0.00030136,120]
[400456409,1767579050724,500.0,0.00030136,120]
[400456410,1767579050770,500.0,0.00030136,120]
[400456411,1767579050822,500.0,0.00030136,120]
[400456412,1767579050893,500.0,0.00030136,120]
[400456413,1767579051143,277.46299781,0.00030136,120]
[400456414,1767579142854,517.54,0.00030136,120]
[400456430,1767579435027,5000.0,0.0003,120]
[400456460,1767579552083,172.33,8.398e-05,2]
[400456461,1767579552491,206.8,8.734e-05,2]
[400456462,1767579552890,241.27,9.07e-05,2]
[400456477,1767579607015,-275.73,9.405e-05,2]
[400456478,1767579607037,-94.46046255,9.405e-05,2]
[400456480,1767579610362,-307.48951275,9.405e-05,2]
[400456484,1767579622537,161.43,9.098e-05,2]
[400456490,1767579722078,154.42227926,0.00030136,120]
[400456502,1767579788168,748.59630337,0.0003013,120]
[400456537,1767579965816,500.0,0.0003,120]
[400456555,1767580092127,168.05,8.588e-05,2]
[400456556,1767580092562,189.06,8.895e-05,2]
[400456557,1767580092999,210.07,9.201e-05,2]
[400456559,1767580114375,181.41021741,0.000295,120]
[400456561,1767580119606,165.07420626,0.0003,120]
[400456562,1767580120024,4720.42344798,7.3e-05,2]
[400456563,1767580120045,3542.57823976,7.3e-05,2]
[400456564,1767580142356,-150.0500247,9.405e-05,2]
[400456565,1767580142379,-300.0,9.999e-05,2]
[400456566,1767580142400,-289.02239041,0.0001,2]
[400456567,1767580142420,-7000.75469368,0.0001,2]
[400456611,1767580232324,-575.0,0.0001107,2]
[400456613,1767580232334,-366.90956,0.0001107,2]
[400456615,1767580232343,-240.91313214,0.00012364,2]
[400456617,1767580232354,-21053.54939676,0.00012364,2]
[400456619,1767580232363,-500.0,0.00012458,2]
[400456620,1767580232372,-500.0,0.00012458,2]
[400456622,1767580232381,-500.0,0.00012458,2]
[400456624,1767580232390,-300.0,0.00012458,2]
[400456626,1767580232400,-300.0,0.00012458,2]
[400456627,1767580232410,-160.34,0.0001255,2]
[400456628,1767580232421,-1603.92360602,0.000129,2]
[400456629,1767580232431,-177.0,0.00013245,2]
[400456630,1767580232440,-666.895515,0.00013699,2]
[400456631,1767580232450,-412.32887927,0.00013866,2]
[400456632,1767580232461,-1410.20116212,0.00014175,2]
[400456633,1767580232475,-2670.40232424,0.00014175,2]
[400456634,1767580232484,-416.0,0.00014326,2]
[400456635,1767580232493,-178.0,0.00014326,2]
[400456636,1767580232502,-181.95543369,0.00014596,2]
[400456717,1767580240930,-500.0,0.00012363,2]
[400456719,1767580240938,-500.0,0.00012363,2]
[400456720,1767580240948,-424.50376595,0.00012363,2]
[400456723,1767580240959,-75.49623405,0.00012363,2]
[400456724,1767580240968,-388.50376595,0.00012363,2]
[400456756,1767580244653,-111.49623405,0.00012363,2]
[400456757,1767580244662,-500.0,0.00012363,2]
[400456758,1767580244672,-500.0,0.00012363,2]
[400456759,1767580244681,-387.09343468,0.00012363,2]
[400456760,1767580244690,-483.43144569,0.00012363,2]
[400456761,1767580244699,-500.0,0.00012363,2]
[400456762,1767580244708,-500.0,0.00012363,2]
[400456763,1767580244717,-500.0,0.00012363,2]
[400456764,1767580244727,-500.0,0.00012363,2]
[400456765,1767580244736,-13.85993497,0.00012363,2]
[400456781,1767580246834,-333.33333333,0.00012363,2]
[400456803,1767580290471,203.87,8.285e-05,2]
[400456807,1767580290937,305.8,8.661e-05,2]
[400456811,1767580291406,407.73,9.038e-05,2]
[400456843,1767580296435,-357.02846024,9.414e-05,2]
[400456941,1767580331954,207.46766639,9.305e-05,2]
[400456942,1767580369199,288.95,7.379e-05,2]
[400456943,1767580369624,433.43,7.714e-05,2]
[400456944,1767580370076,577.9,8.05e-05,2]
[400456945,1767580370500,722.38,8.385e-05,2]
[400456946,1767580370922,866.86,8.721e-05,2]
[400456947,1767580371329,1011.33,9.056e-05,2]
[400456948,1767580386398,-270.0328476,9.391e-05,2]
[400456949,1767580388563,-183.05847986,9.391e-05,2]
[400456950,1767580390575,-179.00505608,9.391e-05,2]
[400456951,1767580394673,-303.21195072,9.391e-05,2]
[400456952,1767580397535,-172.02805785,9.391e-05,2]
[400456953,1767580445595,242.33,7.016e-05,2]
[400456954,1767580445999,484.67,7.35e-05,2]
[400456955,1767580446407,727.0,7.684e-05,2]
[400456956,1767580446805,969.34,8.019e-05,2]
[400456957,1767580447228,1211.67,8.353e-05,2]
[400456958,1767580447790,1454.01,8.687e-05,2]
[400456959,1767580448202,802.67233361,9.021e-05,2]
[400456960,1767580448225,893.66766639,9.021e-05,2]
[400456961,1767580448614,1938.68,9.355e-05,2]
[400456962,1767580510260,500.0,0.00030136,120]
[400456963,1767580510504,507.05211509,0.00030136,120]
[400456964,1767580523455,262.6,8.261e-05,2]
[400456965,1767580523872,393.9,8.636e-05,2]
[400456966,1767580524304,525.21,9.012e-05,2]
[400456967,1767580536420,-244.80662036,9.387e-05,2]
[400456969,1767580602269,226.29,7.863e-05,2]
[400456970,1767580602863,339.44,8.221e-05,2]
[400456971,1767580603106,452.58,8.578e-05,2]
[400456972,1767580603529,565.73,8.935e-05,2]
[400456973,1767580603958,678.87,9.293e-05,2]
[400456977,1767580679638,168.69,9.017e-05,2]
[400456978,1767580681443,185.37,9.99e-06,2]
[400456979,1767580681778,185.34,9.99e-06,2]
[400456980,1767580757318,164.4,7.913e-05,2]
[400456981,1767580758211,246.59,8.273e-05,2]
[400456982,1767580758650,328.79,8.633e-05,2]
[400456983,1767580759062,410.99,8.992e-05,2]
[400456984,1767580759459,493.19,9.352e-05,2]
[400456985,1767580808432,500.0,0.00030136,120]
[400456986,1767580824643,159.0,0.00030136,120]
[400456987,1767580834088,183.82,8.682e-05,2]
[400456988,1767580834500,245.1,9.059e-05,2]
[400456990,1767580909210,167.45,8.6e-05,2]
[400456991,1767580909595,223.26,8.974e-05,2]
[400456992,1767580909989,279.08,9.348e-05,2]
[400456995,1767581172972,501.33761517,0.00030136,120]
[400456996,1767581263238,189.17,7.627e-05,2]
[400456997,1767581263634,236.46,7.944e-05,2]
[400456998,1767581264046,283.75,8.262e-05,2]
[400456999,1767581264574,331.04,8.58e-05,2]
[400457000,1767581265024,378.33,8.898e-05,2]
[400457001,1767581265525,425.62,9.216e-05,2]
[400457002,1767581292857,162.22,0.00030136,120]
[400457003,1767581363356,-556.0,9.712e-05,2]
[400457004,1767581363383,-157.06416288,9.748e-05,2]
[400457028,1767581432453,-154.6,0.0001061,2]
[400457030,1767581432463,-180.36,0.00011018,2]
[400457032,1767581432473,-206.13,0.00011426,2]
[400457034,1767581432482,-185.3357122,0.00011748,2]
[400457036,1767581432492,-231.9,0.00011834,2]
[400457038,1767581432501,-300.0,0.0001205,2]
[400457040,1767581432510,-10254.1004421,0.00012051,2]
[400457072,1767581438562,-500.0,0.0001205,2]
[400457073,1767581438572,-500.0,0.0001205,2]
[400457074,1767581438582,-500.0,0.0001205,2]
[400457075,1767581438603,-500.0,0.0001205,2]
[400457076,1767581438613,-500.0,0.0001205,2]
[400457077,1767581438623,-500.0,0.0001205,2]
[400457078,1767581438633,-500.0,0.0001205,2]
[400457079,1767581438643,-500.0,0.0001205,2]
[400457080,1767581438652,-500.0,0.0001205,2]
[400457081,1767581438661,-290.12275908,0.0001205,2]
[400457082,1767581438670,-607.60314993,0.0001205,2]
[400457083,1767581438680,-500.0,0.0001205,2]
[400457084,1767581438690,-476.8425347,0.0001205,2]
[400457085,1767581438700,-500.0,0.0001205,2]
[400457086,1767581438709,-500.0,0.0001205,2]
[400457087,1767581438719,-500.0,0.0001205,2]
[400457088,1767581438728,-500.0,0.0001205,2]
[400457089,1767581438738,-500.0,0.0001205,2]
[400457090,1767581438747,-500.0,0.0001205,2]
[400457091,1767581438757,-500.0,0.0001205,2]
[400457092,1767581438766,-500.0,0.0001205,2]
[400457093,1767581438776,-500.0,0.0001205,2]
[400457094,1767581438786,-500.0,0.0001205,2]
[400457095,1767581438797,-500.0,0.0001205,2]
[400457096,1767581438807,-500.0,0.0001205,2]
[400457097,1767581438816,-178.93301323,0.0001205,2]
[400457098,1767581438826,-500.0,0.0001205,2]
[400457099,1767581438837,-6098.06257037,0.00012051,2]
[400457100,1767581438847,-232.43702705,0.00012084,2]
[400457101,1767581438857,-500.0,0.00012084,2]
[400457102,1767581438866,-500.0,0.00012084,2]
[400457103,1767581438878,-500.0,0.00012084,2]
[400457104,1767581438887,-281.30124593,0.00012084,2]
[400457105,1767581438897,-500.0,0.00012084,2]
[400457106,1767581438907,-6671.1662045,0.00012085,2]
[400457107,1767581438916,-19603.2380816,0.00012152,2]
[400457108,1767581438925,-151.0,0.000122,2]
[400457109,1767581438935,-257.66,0.00012242,2]
[400457110,1767581438945,-532.33921512,0.00012329,2]
[400457111,1767581438954,-2128.64226475,0.00012509,2]
[400457112,1767581438964,-300.0,0.00012609,2]
[400457113,1767581438974,-300.0,0.00012609,2]
[400457114,1767581438984,-3552.36031274,0.000129,2]
[400457115,1767581438993,-23080.2691387,0.00013003,2]
[400457116,1767581439004,-500.0,0.00013003,2]
[400457117,1767581439014,-2128.64226472,0.00013049,2]
[400457118,1767581439023,-4374.0736525,0.0001306,2]
[400457119,1767581439033,-151.0,0.000131,2]
[400457120,1767581439043,-420.0,0.00013228,2]
[400457121,1767581439053,-975.9877546,0.00013263,2]
[400457122,1767581439062,-500.0,0.00013273,2]
[400457123,1767581439072,-500.0,0.00013273,2]
[400457124,1767581439083,-500.0,0.00013273,2]
[400457125,1767581439096,-500.0,0.00013273,2]
[400457126,1767581439106,-456.09862338,0.00013273,2]
[400457127,1767581439116,-500.0,0.00013273,2]
[400457128,1767581439125,-497.55670689,0.00013273,2]
[400457129,1767581439135,-502.33157316,0.00013273,2]